bitfinex/quotes_BTCUSD_20250530
["timestamp","ask_amount","ask_price","bid_price","bid_amount"]
[1748614414910,0.20829369,105620.0,105610.0,0.00336504]
[1748614415146,0.22339369,105620.0,105610.0,0.00336504]
[1748614415387,0.22339369,105620.0,105570.0,0.02664116]
[1748614415388,0.18941187,105590.0,105570.0,0.02664116]
[1748614415619,0.01894163,105580.0,105570.0,0.00790491]
[1748614415855,0.20835242,105590.0,105570.0,0.11465886]
[1748614416089,0.01894001,105590.0,105580.0,0.09105395]
[1748614416324,0.01893821,105600.0,105580.0,0.10912162]
[1748614416580,0.00946915,105600.0,105580.0,0.12452162]
[1748614416799,0.00946888,105600.0,105580.0,0.12452162]
[1748614417017,0.22728175,105610.0,105590.0,0.0166]
[1748614417241,0.21780147,105600.0,105590.0,0.10765395]
[1748614417463,0.22727098,105600.0,105590.0,0.09105395]
[1748614417692,0.01893821,105600.0,105590.0,0.09105395]
[1748614418602,0.01893812,105600.0,105590.0,0.09105395]
[1748614418824,0.2272708,105600.0,105590.0,0.09305395]
[1748614419058,0.2272708,105600.0,105590.0,0.002]
[1748614419059,0.20833313,105600.0,105590.0,0.002]
[1748614420256,0.21780228,105600.0,105590.0,0.004]
[1748614420500,0.20833214,105600.0,105590.0,0.004]
[1748614420696,0.00946915,105600.0,105590.0,0.004]
[1748614420933,0.00946817,105610.0,105590.0,0.09505395]
[1748614421165,0.19882523,105620.0,105600.0,0.12345395]
[1748614421405,0.00946718,105620.0,105610.0,0.0318]
[1748614421639,0.21774135,105630.0,105610.0,0.12522102]
[1748614421883,0.19882525,105620.0,105610.0,0.12285395]
[1748614422099,0.00946718,105620.0,105610.0,0.12285395]
[1748614422320,0.19882525,105620.0,105610.0,0.12285395]
[1748614422542,0.21776015,105620.0,105610.0,0.12285395]
[1748614422764,0.02840208,105620.0,105610.0,0.12285395]
[1748614422992,0.21976015,105620.0,105610.0,0.12285395]
[1748614423212,0.23869568,105620.0,105610.0,0.10625395]
[1748614423442,0.0284046,105610.0,105600.0,0.0158]
[1748614423661,0.01893625,105610.0,105600.0,0.10734248]
[1748614424377,0.20831216,105610.0,105600.0,0.10734248]
[1748614424595,0.22724895,105610.0,105600.0,0.09154248]
[1748614424817,0.23671766,105610.0,105600.0,0.09154248]
[1748614425049,0.21778096,105610.0,105600.0,0.09154248]
[1748614425272,0.2272503,105610.0,105600.0,0.09154248]
[1748614425745,0.20831279,105610.0,105600.0,0.09154248]
[1748614425963,0.21778159,105610.0,105600.0,0.09154248]
[1748614426870,0.02556638,105630.0,105600.0,0.12334248]
[1748614427097,0.22720991,105630.0,105610.0,0.12285395]
[1748614427327,0.217743,105630.0,105610.0,0.12522087]
[1748614427547,0.22720991,105630.0,105610.0,0.12522087]
[1748614427793,0.01893445,105620.0,105610.0,0.12522087]
[1748614428007,0.20829252,105620.0,105610.0,0.12285395]
[1748614428277,0.21776015,105620.0,105610.0,0.09105395]
[1748614428495,0.02840208,105620.0,105610.0,0.09105395]
[1748614428936,0.02840199,105620.0,105610.0,0.09305395]
[1748614429384,0.01893445,105620.0,105610.0,0.09305395]
[1748614429602,0.21776096,105620.0,105610.0,0.09305395]
[1748614429829,0.2082936,105620.0,105610.0,0.004]
[1748614430059,0.2082936,105620.0,105610.0,0.002]
[1748614430496,0.2082936,105620.0,105610.0,0.004]
[1748614430724,0.01893697,105610.0,105600.0,0.00048853]
[1748614430946,0.01893697,105610.0,105600.0,0.09154248]
[1748614430947,0.5577815,105610.0,105600.0,0.09154248]
[1748614431174,0.3684055,105610.0,105600.0,0.09154248]
[1748614431405,0.36840541,105610.0,105600.0,0.09154248]
[1748614431877,0.56725012,105610.0,105600.0,0.09354248]
[1748614432153,0.35893715,105610.0,105600.0,0.09354248]
[1748614432621,0.54831315,105610.0,105600.0,0.00248853]
[1748614433059,0.54831315,105610.0,105600.0,0.00448853]
[1748614433536,0.35893715,105610.0,105600.0,0.00448853]
[1748614433757,0.36840595,105610.0,105600.0,0.00448853]
[1748614433986,0.55778195,105610.0,105600.0,0.00448853]
[1748614434209,0.54831342,105610.0,105600.0,0.00448853]
[1748614434829,0.20831342,105610.0,105600.0,0.00448853]
[1748614435510,0.1988448,105610.0,105600.0,0.00448853]
[1748614436185,0.189376,105610.0,105600.0,0.00448853]
[1748614437111,0.221976,105610.0,105600.0,0.00448853]
[1748614438436,0.538816,105610.0,105600.0,0.00448853]
[1748614440210,0.221976,105610.0,105600.0,0.00448853]
[1748614440431,0.538776,105610.0,105600.0,0.00448853]
[1748614441118,0.522476,105610.0,105600.0,0.00448853]
[1748614441998,0.506176,105610.0,105600.0,0.00448853]
[1748614442217,0.189376,105610.0,105600.0,0.00448853]
[1748614442442,0.01893634,105610.0,105600.0,0.00448853]
[1748614442672,0.22431297,105610.0,105600.0,0.00448853]
[1748614442904,1.09290692,105610.0,105600.0,0.00448853]
[1748614443646,1.15697596,105610.0,105600.0,0.00448853]
[1748614443877,0.02841822,105560.0,105550.0,0.07575399]
[1748614444111,0.02841822,105560.0,105550.0,0.16680794]
[1748614444343,0.03789114,105560.0,105550.0,0.16680794]
[1748614444853,0.19893519,105570.0,105550.0,0.16680794]
[1748614445069,0.29393404,105590.0,105560.0,0.12602208]
[1748614445070,0.32833437,105590.0,105560.0,0.12602208]
[1748614445294,0.00995922,105590.0,105560.0,0.6326558]
[1748614445520,0.00995922,105590.0,105570.0,0.0326]
[1748614445745,0.00048935,105590.0,105580.0,0.66288767]
[1748614445973,0.00048935,105590.0,105580.0,0.76736767]
[1748614446639,0.00048935,105590.0,105580.0,0.22813395]
[1748614447087,0.00048935,105590.0,105580.0,0.76736767]
[1748614447522,0.00048935,105590.0,105580.0,0.23113395]
[1748614447776,0.00048935,105590.0,105580.0,0.23313395]
[1748614448021,0.00048935,105590.0,105580.0,0.77236767]
[1748614448253,0.00048935,105590.0,105580.0,0.23313395]
[1748614448461,0.00048935,105590.0,105580.0,0.77236767]
[1748614448715,0.00048935,105590.0,105580.0,1.11236767]
[1748614449608,0.00048935,105590.0,105580.0,0.57313395]
[1748614449818,0.00048935,105590.0,105580.0,1.11236767]
[1748614450918,0.00048935,105590.0,105580.0,0.23313395]
[1748614451143,0.00048935,105590.0,105580.0,0.54977395]
[1748614451362,0.00048935,105590.0,105580.0,0.28313395]
[1748614451813,0.00048935,105590.0,105580.0,0.23313395]
[1748614452289,0.18990122,105590.0,105580.0,0.12865395]
[1748614452510,0.20884177,105590.0,105580.0,0.09605395]
[1748614452732,0.0194299,105590.0,105580.0,0.09605395]
[1748614453177,0.02889968,105590.0,105580.0,0.09605395]
[1748614453406,0.55831218,105590.0,105580.0,0.09605395]
[1748614453627,0.55831218,105590.0,105580.0,0.09405395]
[1748614453628,0.35942936,105590.0,105580.0,0.09405395]
[1748614453863,0.36042936,105590.0,105580.0,0.09105395]
[1748614454092,0.56878205,105590.0,105580.0,0.09105395]
[1748614454309,0.56878205,105590.0,105580.0,0.09205395]
[1748614454526,0.55931218,105590.0,105580.0,0.09205395]
[1748614454765,0.36042927,105590.0,105580.0,0.09205395]
[1748614454994,0.36989941,105590.0,105580.0,0.09205395]
[1748614455248,0.55931209,105590.0,105580.0,0.09205395]
[1748614455448,0.36042927,105590.0,105580.0,0.09205395]
[1748614455669,0.55931137,105590.0,105580.0,0.09205395]
[1748614455882,0.219312,105590.0,105580.0,0.09205395]
[1748614456362,0.22878259,105590.0,105580.0,0.09205395]
[1748614456829,0.02990004,105590.0,105580.0,0.09205395]
[1748614457063,0.02989941,105590.0,105580.0,0.09205395]
[1748614457280,0.03936973,105590.0,105580.0,0.09868411]
[1748614457498,0.03936973,105590.0,105580.0,0.09868401]
[1748614457723,0.04884032,105590.0,105580.0,0.09868401]
[1748614457943,0.22878241,105590.0,105580.0,0.09868507]
[1748614458152,0.22878241,105590.0,105580.0,0.09205395]
[1748614458364,0.22878223,105590.0,105580.0,0.09868522]
[1748614458577,0.21931254,105590.0,105580.0,0.09868522]
[1748614459014,0.20984222,105590.0,105580.0,0.00763127]
[1748614459449,0.20984222,105590.0,105580.0,0.00763281]
[1748614459675,0.20984222,105590.0,105580.0,0.00763476]
[1748614460393,0.24094222,105590.0,105580.0,0.001]
[1748614460841,0.64851617,105590.0,105580.0,0.001]
[1748614461797,0.33199617,105590.0,105580.0,0.001]
[1748614462018,0.31436222,105590.0,105580.0,0.001]
[1748614462728,0.33056222,105590.0,105580.0,0.001]
[1748614462955,0.34636222,105590.0,105580.0,0.001]
[1748614464129,0.43741617,105590.0,105580.0,0.001]
[1748614467040,0.24184222,105590.0,105580.0,0.001]
[1748614467271,0.63084222,105590.0,105580.0,0.001]
[1748614467519,0.00148935,105590.0,105580.0,0.001]
[1748614467732,0.00148935,105590.0,105580.0,0.02333308]
[1748614467733,0.22878178,105590.0,105580.0,0.02333308]
[1748614468200,0.02989941,105590.0,105580.0,0.0167]
[1748614468423,0.22878241,105590.0,105580.0,0.001]
[1748614468879,0.21931191,105590.0,105580.0,0.00763353]
[1748614469557,0.03937054,105590.0,105580.0,0.00763378]
[1748614469785,0.00148935,105590.0,105580.0,0.02353381]
[1748614470004,0.01095913,105590.0,105580.0,0.04013375]
[1748614470217,0.0298995,105590.0,105580.0,0.04013375]
[1748614470435,0.03937009,105590.0,105580.0,0.00763375]
[1748614470885,0.03937009,105590.0,105580.0,0.00763351]
[1748614471111,0.22878196,105590.0,105580.0,0.00763351]
[1748614471337,0.21931137,105590.0,105580.0,0.00763362]
[1748614471594,0.20984195,105590.0,105580.0,0.00763371]
[1748614471810,0.20984195,105590.0,105580.0,0.001]
[1748614472516,0.22534195,105590.0,105580.0,0.001]
[1748614472749,0.55694195,105590.0,105580.0,0.001]
[1748614472982,0.6479959,105590.0,105580.0,0.001]
[1748614473235,1.0922359,105590.0,105580.0,0.001]
[1748614474372,0.7758359,105590.0,105580.0,0.001]
[1748614474601,1.0921959,105590.0,105580.0,0.001]
[1748614474818,1.0911959,105590.0,105580.0,0.001]
[1748614475031,0.00947247,105560.0,105550.0,0.10835399]
[1748614475251,0.01894521,105560.0,105550.0,0.19940794]
[1748614475479,0.00947247,105560.0,105550.0,0.19940794]
[1748614475709,0.02841768,105560.0,105550.0,0.19940794]
[1748614476156,0.02841768,105560.0,105550.0,0.20140794]
[1748614476601,0.0378906,105560.0,105550.0,0.20140794]
[1748614476790,0.03789051,105560.0,105550.0,0.20140794]
[1748614477253,0.02841768,105560.0,105550.0,0.20140794]
[1748614477476,0.03789042,105560.0,105550.0,0.20140794]
[1748614477721,0.00947256,105560.0,105550.0,0.20440794]
[1748614477958,0.01894539,105560.0,105550.0,0.12865395]
[1748614478630,0.02841849,105560.0,105550.0,0.12865395]
[1748614478894,0.0284184,105560.0,105550.0,0.12865395]
[1748614479106,0.01894539,105560.0,105550.0,0.12865395]
[1748614479303,0.2273572,105560.0,105550.0,0.12865395]
[1748614479565,0.03789141,105560.0,105550.0,0.12865395]
[1748614479790,0.02841831,105560.0,105550.0,0.12865395]
[1748614480274,0.03789141,105560.0,105550.0,0.12865395]
[1748614480548,0.20841172,105560.0,105550.0,0.09605395]
[1748614480794,0.20841172,105560.0,105550.0,0.005]
[1748614481515,0.20841172,105560.0,105550.0,0.002]
[1748614481743,0.20841172,105560.0,105550.0,0.003]
[1748614482229,0.20841172,105560.0,105550.0,0.001]
[1748614482473,0.21788491,105560.0,105550.0,0.003]
[1748614482757,0.22735819,105560.0,105550.0,0.003]
[1748614483012,0.22735819,105560.0,105550.0,0.001]
[1748614483233,0.21788491,105560.0,105550.0,0.002]
[1748614483679,0.22735819,105560.0,105550.0,0.002]
[1748614484552,0.03789249,105560.0,105550.0,0.002]
[1748614484773,0.22735819,105560.0,105550.0,0.002]
[1748614485740,0.22401217,105560.0,105550.0,0.002]
[1748614488375,0.20841217,105560.0,105550.0,0.002]
[1748614488600,0.00947265,105560.0,105550.0,0.002]
[1748614488816,0.02841858,105560.0,105550.0,0.002]
[1748614489056,0.22735756,105560.0,105550.0,0.002]
[1748614489724,0.21788491,105560.0,105550.0,0.002]
[1748614490591,0.20841199,105560.0,105550.0,0.002]
[1748614491040,0.22461199,105560.0,105550.0,0.002]
[1748614493304,0.20841199,105560.0,105550.0,0.002]
[1748614493975,0.00947301,105560.0,105550.0,0.002]
[1748614494202,0.02841822,105560.0,105550.0,0.002]
[1748614494425,0.21786582,105570.0,105550.0,0.002]
[1748614494645,0.22733775,105570.0,105550.0,0.0324]
[1748614494866,0.00947256,105560.0,105550.0,0.0324]
[1748614495095,0.00947202,105570.0,105550.0,0.0324]
[1748614495320,0.01894325,105570.0,105560.0,0.015]
[1748614495552,0.22733575,105570.0,105550.0,0.12285395]
[1748614497425,0.01894342,105570.0,105550.0,0.12185395]
[1748614497658,0.03788773,105570.0,105550.0,0.12185395]
[1748614497883,0.00947247,105560.0,105550.0,0.12285395]
[1748614498331,0.00947158,105570.0,105550.0,0.12285395]
[1748614498550,0.02841535,105570.0,105560.0,0.0166]
[1748614498794,0.02841535,105570.0,105550.0,0.12505395]
[1748614498795,0.02841597,105570.0,105550.0,0.12505395]
[1748614499036,0.69627546,105580.0,105560.0,0.0166]
[1748614499316,0.00947158,105570.0,105560.0,0.0322]
[1748614499755,0.51631384,105580.0,105560.0,0.0322]
[1748614499979,0.00947175,105570.0,105560.0,0.0322]
[1748614500197,0.00947158,105570.0,105560.0,0.0322]
[1748614500419,0.03788746,105570.0,105560.0,0.0322]
[1748614500874,0.03788826,105570.0,105550.0,0.12165395]
[1748614501138,0.01894368,105570.0,105550.0,0.12165395]
[1748614501366,0.01894368,105570.0,105550.0,0.12265395]
[1748614501591,0.00947175,105570.0,105550.0,0.12165395]
[1748614501816,0.01894333,105570.0,105560.0,0.0315]
[1748614502042,0.03788728,105570.0,105560.0,0.0315]
[1748614502271,0.04836019,105570.0,105550.0,0.12255395]
[1748614502499,0.20841163,105560.0,105550.0,0.09105395]
[1748614502724,0.01894539,105560.0,105550.0,0.09105395]
[1748614502971,0.01894539,105560.0,105550.0,0.09205395]
[1748614503204,0.01894539,105560.0,105550.0,0.09105395]
[1748614503432,0.0284184,105560.0,105550.0,0.09105395]
[1748614503654,0.21788473,105560.0,105540.0,0.03842699]
[1748614503886,0.1894657,105560.0,105540.0,0.00662699]
[1748614504114,0.00947364,105550.0,105540.0,0.00662699]
[1748614504376,0.54553212,105570.0,105540.0,0.02322699]
[1748614504615,0.00947364,105550.0,105540.0,0.03982699]
[1748614504816,0.02842092,105550.0,105540.0,0.00862699]
[1748614505086,0.22737866,105550.0,105540.0,0.00862699]
[1748614505540,0.02842092,105550.0,105540.0,0.00977342]
[1748614505769,0.22737875,105550.0,105540.0,0.00877342]
[1748614506012,0.22737875,105550.0,105540.0,0.01177342]
[1748614506949,0.0378951,105550.0,105540.0,0.01177342]
[1748614507164,0.22737875,105550.0,105540.0,0.01177342]
[1748614507392,0.22737875,105550.0,105540.0,0.01021342]
[1748614507623,0.0378951,105550.0,105540.0,0.00821342]
[1748614507844,0.0378951,105550.0,105540.0,0.01021342]
[1748614509024,0.22363174,105550.0,105540.0,0.01021342]
[1748614509252,0.22363174,105550.0,105540.0,0.01907799]
[1748614509253,0.23953174,105550.0,105540.0,0.01907799]
[1748614509470,0.23953174,105550.0,105540.0,0.01907798]
[1748614509707,0.23953174,105550.0,105540.0,0.01021342]
[1748614509954,0.98638569,105550.0,105540.0,0.01021342]
[1748614510178,0.98638569,105550.0,105540.0,0.00514643]
[1748614510179,0.99544373,105550.0,105540.0,0.00514643]
[1748614510419,1.00676629,105550.0,105540.0,0.00514643]
[1748614510901,1.02185044,105550.0,105540.0,0.00514643]
[1748614511164,1.50975044,105550.0,105540.0,0.00514643]
[1748614511401,1.50970066,105550.0,105540.0,0.00314643]
[1748614511648,1.49466629,105550.0,105540.0,0.00314643]
[1748614511887,1.51332127,105550.0,105540.0,0.00114643]
[1748614512361,1.51632127,105550.0,105540.0,0.00014643]
[1748614512592,1.14344373,105550.0,105540.0,0.00114643]
[1748614512826,1.04333174,105550.0,105540.0,0.00114643]
[1748614515482,1.07423174,105550.0,105540.0,0.00114643]
[1748614515914,1.16528569,105550.0,105540.0,0.00114643]
[1748614518629,1.18466925,105550.0,105540.0,0.00114643]
[1748614518868,1.2437087,105550.0,105540.0,0.00114643]
[1748614519574,1.2437087,105550.0,105540.0,0.66287224]
[1748614519575,0.02733876,105550.0,105540.0,0.66287224]
[1748614519796,0.01603945,105550.0,105540.0,0.75316708]
[1748614520044,0.007,105550.0,105540.0,0.75316708]
[1748614520767,0.003,105550.0,105540.0,0.75216708]
[1748614521229,0.003,105550.0,105540.0,0.77297463]
[1748614521680,0.01894395,105570.0,105550.0,0.0307]
[1748614521904,0.02841624,105570.0,105550.0,0.12175395]
[1748614522122,0.01894342,105570.0,105550.0,0.12175395]
[1748614522348,0.13237535,105570.0,105550.0,0.12412223]
[1748614522563,0.14184755,105570.0,105550.0,0.12175395]
[1748614523457,0.15131993,105570.0,105550.0,0.12275395]
[1748614523685,0.02841876,105560.0,105550.0,0.12275395]
[1748614523917,0.217885,105560.0,105550.0,0.001]
[1748614524166,0.01894602,105560.0,105550.0,0.001]
[1748614524373,0.0284193,105560.0,105550.0,0.001]
[1748614524601,0.01894602,105560.0,105550.0,0.001]
[1748614524829,0.20841172,105560.0,105550.0,0.001]
[1748614525091,0.01894701,105550.0,105540.0,0.00014643]
[1748614525325,0.20843147,105550.0,105540.0,0.00014643]
[1748614525559,0.65448542,105550.0,105540.0,0.00014643]
[1748614525781,0.67098542,105550.0,105540.0,0.00014643]
[1748614526442,0.67098542,105550.0,105540.0,0.00314643]
[1748614526662,0.67098542,105550.0,105540.0,0.00014643]
[1748614527095,0.67098542,105550.0,105540.0,0.00214643]
[1748614527599,0.67098542,105550.0,105540.0,0.00014643]
[1748614527843,0.34947346,105550.0,105540.0,0.00014643]
[1748614528058,0.31191374,105570.0,105540.0,0.66157224]
[1748614528279,0.0189453,105560.0,105540.0,0.12280038]
[1748614528500,0.03789078,105560.0,105550.0,0.0162]
[1748614528730,0.00947247,105560.0,105550.0,0.0162]
[1748614528957,0.19890128,105580.0,105550.0,0.0318]
[1748614529184,0.00947167,105570.0,105560.0,0.12265395]
[1748614529403,0.00947158,105570.0,105560.0,0.12265395]
[1748614529616,0.03788729,105570.0,105560.0,0.12265395]
[1748614529843,0.02841518,105570.0,105560.0,0.12265395]
[1748614530058,0.0378872,105570.0,105560.0,0.12265395]
[1748614530288,0.22733619,105570.0,105560.0,0.12265395]
[1748614530516,0.22833619,105570.0,105560.0,0.09105395]
[1748614530953,0.23133619,105570.0,105560.0,0.09105395]
[1748614531182,0.22186426,105570.0,105560.0,0.09105395]
[1748614531454,0.21886426,105570.0,105560.0,0.09105395]
[1748614531678,0.02194413,105570.0,105560.0,0.09105395]
[1748614531902,0.21986417,105570.0,105560.0,0.09105395]
[1748614532561,0.01894557,105560.0,105540.0,0.05222141]
[1748614532786,0.22735702,105560.0,105550.0,0.09648639]
[1748614533006,0.02841813,105560.0,105550.0,0.09648639]
[1748614533452,0.00947247,105560.0,105550.0,0.12748639]
[1748614533690,0.01894539,105560.0,105550.0,0.12748639]
[1748614533943,0.22733624,105570.0,105550.0,0.12985468]
[1748614534156,0.00947158,105570.0,105550.0,0.12985468]
[1748614534591,0.04735976,105570.0,105550.0,0.12985468]
[1748614534809,0.22733647,105570.0,105550.0,0.12985468]
[1748614535028,0.0473602,105570.0,105550.0,0.12985468]
[1748614535301,0.20841163,105560.0,105550.0,0.11102724]
[1748614535513,0.21788491,105560.0,105550.0,0.11102724]
[1748614535739,0.21788491,105560.0,105550.0,0.00643244]
[1748614536189,0.18944796,105570.0,105550.0,0.09648639]
[1748614536411,0.01894521,105560.0,105550.0,0.12898639]
[1748614536665,0.02841822,105560.0,105550.0,0.12998639]
[1748614536907,0.22735711,105560.0,105550.0,0.11238639]
[1748614537141,0.22735711,105560.0,105550.0,0.09648639]
[1748614537142,0.22735792,105560.0,105550.0,0.09648639]
[1748614537354,0.02841894,105560.0,105550.0,0.09648639]
[1748614537574,0.21788464,105560.0,105550.0,0.09648639]
[1748614538236,0.02841894,105560.0,105550.0,0.09648639]
[1748614538464,0.20839254,105570.0,105550.0,0.12808639]
[1748614538684,0.00947274,105560.0,105550.0,0.12808639]
[1748614538903,0.02841804,105560.0,105550.0,0.12808639]
[1748614539142,0.03789114,105560.0,105550.0,0.12808639]
[1748614539575,0.02841822,105560.0,105550.0,0.12808639]
[1748614539801,0.02841813,105560.0,105550.0,0.12808639]
[1748614540017,0.01894521,105560.0,105550.0,0.12808639]
[1748614540241,0.00947167,105570.0,105550.0,0.12808639]
[1748614540485,0.00947265,105560.0,105550.0,0.14499555]
[1748614540922,0.01894557,105560.0,105550.0,0.14262724]
[1748614541138,0.00947265,105560.0,105550.0,0.14262724]
[1748614541361,0.01894557,105560.0,105550.0,0.14262724]
[1748614541579,0.00947265,105560.0,105550.0,0.14162724]
[1748614542009,0.00947265,105560.0,105550.0,0.14262724]
[1748614542227,0.0189453,105560.0,105550.0,0.14162724]
[1748614542461,0.00947167,105570.0,105560.0,0.0166]
[1748614542716,0.00947167,105570.0,105560.0,0.10765395]
[1748614542979,0.0189436,105570.0,105560.0,0.12355395]
[1748614543206,0.21786355,105570.0,105560.0,0.12355395]
[1748614543873,0.22733593,105570.0,105560.0,0.12355395]
[1748614544102,0.02094342,105570.0,105560.0,0.12355395]
[1748614544322,0.03988737,105570.0,105560.0,0.12355395]
[1748614544538,0.04935975,105570.0,105560.0,0.12355395]
[1748614544755,0.03988737,105570.0,105560.0,0.13318924]
[1748614544976,0.03041526,105570.0,105560.0,0.13318924]
[1748614545203,0.03988737,105570.0,105560.0,0.13318924]
[1748614545424,0.002,105570.0,105560.0,0.14773009]
[1748614545645,0.03041553,105570.0,105560.0,0.14773009]
[1748614545868,0.03041553,105570.0,105560.0,0.11523009]
[1748614546090,0.03041544,105570.0,105560.0,0.11523009]
[1748614546319,0.03041544,105570.0,105560.0,0.14663009]
[1748614547042,0.02094377,105570.0,105560.0,0.1369948]
[1748614547286,0.002,105570.0,105560.0,0.1055948]
[1748614547497,0.002,105570.0,105560.0,0.1364948]
[1748614547720,0.01147167,105570.0,105560.0,0.1364948]
[1748614548888,0.02094351,105570.0,105560.0,0.1055948]
[1748614549107,0.02094342,105570.0,105560.0,0.1055948]
[1748614549374,0.01147158,105570.0,105560.0,0.1055948]
[1748614549593,0.002,105570.0,105560.0,0.1055948]
[1748614549841,0.002,105570.0,105560.0,0.1370948]
[1748614550572,0.002,105570.0,105560.0,0.13946276]
[1748614551020,0.00947005,105590.0,105570.0,0.04604085]
[1748614551245,0.02841006,105590.0,105570.0,0.1370948]
[1748614551721,0.02840808,105600.0,105570.0,0.1210948]
[1748614551969,0.00946987,105590.0,105580.0,0.016]
[1748614552225,0.02841024,105590.0,105580.0,0.016]
[1748614552476,0.00946987,105590.0,105580.0,0.016]
[1748614552716,0.02841024,105590.0,105580.0,0.016]
[1748614552948,0.02841024,105590.0,105570.0,0.1370948]
[1748614553165,0.02242927,105590.0,105570.0,0.13946254]
[1748614555027,0.02142945,105590.0,105580.0,0.0165]
[1748614555299,0.00248935,105590.0,105580.0,0.10755395]
[1748614555521,0.00248935,105590.0,105580.0,0.12345395]
[1748614555815,0.00348935,105590.0,105580.0,0.12345395]
[1748614556047,0.00148935,105590.0,105580.0,0.12345395]
[1748614556483,0.00348935,105590.0,105580.0,0.12345395]
[1748614556937,0.00048935,105590.0,105580.0,0.12445395]
[1748614557220,0.00048935,105590.0,105580.0,0.21474879]
[1748614557448,0.00048935,105590.0,105580.0,0.75352065]
[1748614557931,0.00048935,105590.0,105580.0,1.18935946]
[1748614558182,0.00048935,105590.0,105580.0,1.55777285]
[1748614558674,0.00048935,105590.0,105580.0,1.55677285]
[1748614558917,0.00048935,105590.0,105580.0,6.1515447]
[1748614559159,0.02777256,105650.0,105620.0,0.04704085]
[1748614559410,0.0094653,105640.0,105630.0,0.12355395]
[1748614559639,0.02839626,105640.0,105630.0,0.12355395]
[1748614559886,0.02839635,105640.0,105630.0,0.12355395]
[1748614560618,9.267e-05,105650.0,105640.0,0.031]
[1748614560847,9.267e-05,105650.0,105640.0,0.67536666]
[1748614561317,9.267e-05,105650.0,105640.0,0.1365948]
[1748614561565,9.267e-05,105650.0,105640.0,1.55403318]
[1748614561803,9.267e-05,105650.0,105640.0,3.79157029]
[1748614562045,9.267e-05,105650.0,105640.0,3.25529423]
[1748614562264,9.267e-05,105650.0,105640.0,3.20136289]
[1748614562493,9.267e-05,105650.0,105640.0,2.00675667]
[1748614562717,9.267e-05,105650.0,105640.0,1.33024666]
[1748614562949,9.267e-05,105650.0,105640.0,1.73932083]
[1748614563177,9.267e-05,105650.0,105640.0,1.7557864]
[1748614563441,0.01892371,105680.0,105650.0,0.94991108]
[1748614563668,0.01901646,105680.0,105670.0,0.01454085]
[1748614563918,0.01901646,105680.0,105670.0,0.1055948]
[1748614564163,0.00955447,105680.0,105670.0,0.1055948]
[1748614564375,9.266e-05,105680.0,105670.0,0.67813222]
[1748614564624,9.266e-05,105680.0,105670.0,0.67576666]
[1748614564835,9.266e-05,105680.0,105670.0,0.1369948]
[1748614565063,9.266e-05,105680.0,105670.0,0.1393602]
[1748614565288,9.266e-05,105680.0,105670.0,1.52652043]
[1748614565522,9.266e-05,105680.0,105670.0,1.52715503]
[1748614565767,9.266e-05,105680.0,105670.0,1.15170603]
[1748614566000,9.266e-05,105680.0,105670.0,1.51707473]
[1748614566001,0.00109266,105680.0,105670.0,1.51707473]
[1748614566255,0.20926764,105680.0,105670.0,0.1239948]
[1748614566463,0.20926764,105680.0,105670.0,0.1085948]
[1748614566464,0.20826764,105680.0,105670.0,0.1085948]
[1748614566915,0.20826764,105680.0,105670.0,0.09605395]
[1748614567372,0.22416764,105680.0,105670.0,0.09605395]
[1748614567833,0.23956764,105680.0,105670.0,0.005]
[1748614568287,0.57956764,105680.0,105670.0,0.005]
[1748614569412,0.03785592,105660.0,105640.0,0.48463399]
[1748614569629,0.22714306,105660.0,105650.0,0.09105395]
[1748614570078,0.0094644,105650.0,105640.0,0.43942085]
[1748614570305,0.20819875,105670.0,105650.0,0.01454085]
[1748614570524,0.21767817,105660.0,105650.0,0.10796082]
[1748614570754,0.20821457,105660.0,105650.0,0.1055948]
[1748614570978,0.20921457,105660.0,105650.0,0.09105395]
[1748614571205,0.20921457,105660.0,105650.0,0.09505395]
[1748614572102,0.20821457,105660.0,105650.0,0.09505395]
[1748614572381,0.01892765,105660.0,105650.0,0.09505395]
[1748614572600,0.0094636,105660.0,105650.0,0.1125948]
[1748614572826,0.21765813,105670.0,105650.0,0.66973273]
[1748614573064,0.20819525,105670.0,105660.0,0.09105395]
[1748614573516,0.21765804,105670.0,105650.0,0.03754085]
[1748614573742,0.21765804,105670.0,105660.0,0.09105395]
[1748614574189,0.20819516,105670.0,105660.0,0.09105395]
[1748614574452,0.01892648,105670.0,105660.0,0.09405395]
[1748614574674,0.01892549,105670.0,105660.0,0.09405395]
[1748614575141,0.02838855,105670.0,105660.0,0.09405395]
[1748614575368,0.02838855,105670.0,105660.0,0.09605395]
[1748614575823,0.01892549,105670.0,105660.0,0.09605395]
[1748614576047,9.266e-05,105680.0,105660.0,0.09605395]
[1748614576280,9.266e-05,105680.0,105670.0,0.09105395]
[1748614576504,9.266e-05,105680.0,105670.0,0.12456034]
[1748614576961,0.00955438,105680.0,105670.0,0.14086034]
[1748614577183,9.266e-05,105680.0,105670.0,0.14086034]
[1748614577437,0.01901637,105680.0,105670.0,0.14086034]
[1748614577658,0.00955438,105680.0,105670.0,0.14086034]
[1748614578322,0.01901628,105680.0,105670.0,0.14086034]
[1748614578558,0.00955438,105680.0,105670.0,0.14086034]
[1748614578794,9.266e-05,105680.0,105670.0,0.14086034]
[1748614579239,0.34009266,105680.0,105670.0,0.14086034]
[1748614579474,0.34955456,105680.0,105670.0,0.10796034]
[1748614579690,0.34955447,105680.0,105670.0,0.10796034]
[1748614580136,0.34009266,105680.0,105670.0,0.10796034]
[1748614580356,0.34955447,105680.0,105670.0,0.10796034]
[1748614580601,9.266e-05,105680.0,105670.0,0.10796034]
[1748614580845,9.266e-05,105680.0,105670.0,0.14046022]
[1748614581779,9.266e-05,105680.0,105670.0,0.1380948]
[1748614582045,9.266e-05,105680.0,105670.0,0.14046022]
[1748614582300,9.266e-05,105680.0,105670.0,0.1380948]
[1748614582996,0.00955447,105680.0,105670.0,0.1380948]
[1748614583221,9.266e-05,105680.0,105670.0,0.1380948]
[1748614583889,0.00955456,105680.0,105670.0,0.1055948]
[1748614584137,0.00955447,105680.0,105670.0,0.1055948]
[1748614584362,0.21772998,105680.0,105670.0,0.1055948]
[1748614584610,0.24046781,105680.0,105670.0,0.09105395]
[1748614584839,0.00946351,105660.0,105640.0,0.20965399]
[1748614585087,0.00946351,105660.0,105650.0,0.09105395]
[1748614585319,0.22714177,105660.0,105650.0,0.09105395]
[1748614585543,0.02839116,105660.0,105650.0,0.09105395]
[1748614585762,0.0189272,105660.0,105650.0,0.10796086]
[1748614585992,0.001,105660.0,105650.0,0.1055948]
[1748614586250,0.0104636,105660.0,105650.0,0.10796073]
[1748614586471,0.0094636,105660.0,105650.0,0.10796073]
[1748614586678,0.0094636,105660.0,105650.0,0.1055948]
[1748614586895,0.2176593,105670.0,105650.0,0.1095948]
[1748614587112,0.2176593,105670.0,105660.0,0.01690677]
[1748614587113,0.0094627,105670.0,105660.0,0.01690677]
[1748614587332,0.23595477,105670.0,105660.0,0.1055948]